lending/lending_fUSD_20260206
["ID","MTS","AMOUNT","RATE_DAILY","PERIOD"]
[404638384,1770369032646,-500.0,0.00012726,2]
[404638385,1770369032656,-500.0,0.00012726,2]
[404638386,1770369032666,-500.0,0.00012726,2]
[404638387,1770369032676,-500.0,0.00012726,2]
[404638388,1770369032686,-500.0,0.00012726,2]
[404638389,1770369032695,-500.0,0.00012726,2]
[404638390,1770369032705,-500.0,0.00012726,2]
[404638391,1770369032716,-500.0,0.00012726,2]
[404638392,1770369032729,-500.0,0.00012726,2]
[404638393,1770369032739,-500.0,0.00012726,2]
[404638394,1770369032750,-500.0,0.00012726,2]
[404638395,1770369032760,-500.0,0.00012726,2]
[404638396,1770369032771,-500.0,0.00012726,2]
[404638397,1770369032780,-500.0,0.00012726,2]
[404638398,1770369032790,-500.0,0.00012726,2]
[404638399,1770369032801,-521.59112328,0.00012726,2]
[404638400,1770369032810,-500.0,0.00012726,2]
[404638401,1770369032820,-500.0,0.00012726,2]
[404638402,1770369032830,-500.0,0.00012726,2]
[404638403,1770369032839,-500.0,0.00012726,2]
[404638404,1770369032849,-500.0,0.00012726,2]
[404638405,1770369032859,-500.0,0.00012726,2]
[404638406,1770369032868,-500.0,0.00012726,2]
[404638407,1770369032879,-500.0,0.00012726,2]
[404638408,1770369032890,-500.0,0.00012726,2]
[404638409,1770369032900,-500.0,0.00012726,2]
[404638410,1770369032914,-500.0,0.00012726,2]
[404638411,1770369032923,-500.0,0.00012726,2]
[404638412,1770369032933,-500.0,0.00012726,2]
[404638413,1770369032944,-500.0,0.00012726,2]
[404638414,1770369032954,-500.0,0.00012726,2]
[404638415,1770369032964,-500.0,0.00012726,2]
[404638416,1770369032974,-500.0,0.00012726,2]
[404638417,1770369032984,-500.0,0.00012726,2]
[404638418,1770369032993,-500.0,0.00012726,2]
[404638419,1770369033003,-500.0,0.00012726,2]
[404638420,1770369033012,-500.0,0.00012726,2]
[404638421,1770369033022,-500.0,0.00012726,2]
[404638422,1770369033031,-500.0,0.00012726,2]
[404638423,1770369033041,-500.0,0.00012726,2]
[404638424,1770369033051,-500.0,0.00012726,2]
[404638425,1770369033061,-201.94320109,0.00012726,2]
[404638426,1770369033071,-500.0,0.00012726,2]
[404638427,1770369033080,-500.0,0.00012726,2]
[404638428,1770369033090,-500.0,0.00012726,2]
[404638429,1770369033099,-500.0,0.00012726,2]
[404638430,1770369033109,-150.0,0.00012755,2]
[404638431,1770369033119,-151.0,0.00012784,2]
[404638432,1770369033128,-6484.12,0.00012786,2]
[404638433,1770369033138,-999.99,0.00012786,2]
[404638434,1770369033148,-36818.69,0.00012786,2]
[404638435,1770369033158,-7202.12,0.00012786,2]
[404638436,1770369033168,-491.06378942,0.00012787,2]
[404638437,1770369033177,-299.99,0.00012787,2]
[404638438,1770369033187,-9999.99,0.00012787,2]
[404638439,1770369033197,-9999.99,0.00012787,2]
[404638440,1770369033207,-200.0,0.0001281,2]
[404638441,1770369033217,-166.66,0.00012819,2]
[404638442,1770369033227,-151.0,0.00012819,2]
[404638443,1770369033237,-151.0,0.00012819,2]
[404638444,1770369033247,-151.0,0.00012819,2]
[404638445,1770369033257,-151.0,0.00012819,2]
[404638446,1770369033266,-151.0,0.00012819,2]
[404638447,1770369033276,-151.0,0.00012819,2]
[404638448,1770369033286,-151.0,0.00012819,2]
[404638449,1770369033299,-151.0,0.00012819,2]
[404638450,1770369033310,-151.0,0.00012819,2]
[404638451,1770369033320,-151.0,0.00012819,2]
[404638452,1770369033330,-151.0,0.00012819,2]
[404638453,1770369033340,-151.0,0.00012819,2]
[404638454,1770369033349,-151.0,0.00012819,2]
[404638455,1770369033359,-151.0,0.00012819,2]
[404638456,1770369033369,-151.0,0.00012819,2]
[404638457,1770369033379,-151.0,0.00012819,2]
[404638458,1770369033389,-151.0,0.00012819,2]
[404638459,1770369033398,-151.0,0.00012819,2]
[404638460,1770369033409,-151.0,0.00012819,2]
[404638461,1770369033418,-151.0,0.00012819,2]
[404638462,1770369033429,-151.0,0.00012827,2]
[404638463,1770369033439,-151.0,0.00012827,2]
[404638464,1770369033450,-212.720651,0.00012827,2]
[404638465,1770369033460,-212.720651,0.00012827,2]
[404638466,1770369033470,-212.720651,0.00012827,2]
[404638467,1770369033480,-212.720651,0.00012827,2]
[404638468,1770369033490,-1631.963075,0.00012827,2]
[404638469,1770369033500,-1631.963075,0.00012827,2]
[404638470,1770369033510,-1631.963075,0.00012827,2]
[404638471,1770369033520,-1631.963075,0.00012827,2]
[404638472,1770369033530,-250.0,0.00012827,2]
[404638473,1770369033540,-250.0,0.00012827,2]
[404638474,1770369033550,-300.0,0.00012827,2]
[404638475,1770369033561,-4517.017,0.00012865,2]
[404638476,1770369033571,-367.083,0.00012865,2]
[404638477,1770369033582,-10023.3122,0.00012917,2]
[404638478,1770369033592,-9700.0,0.00012917,2]
[404638479,1770369033601,-1000.0,0.00012927,2]
[404638480,1770369033612,-500.0,0.00013,2]
[404638481,1770369033621,-237.3935,0.00013027,2]
[404638482,1770369033631,-1241.82668,0.00013045,2]
[404638483,1770369033642,-166.66,0.00013067,2]
[404638484,1770369033651,-250.0,0.00013153,2]
[404638485,1770369033661,-214.73,0.00013239,2]
[404638486,1770369033674,-323.0,0.00013245,2]
[404638487,1770369033684,-1680.0,0.00013248,2]
[404638488,1770369033694,-500.0,0.00013274,2]
[404638489,1770369033704,-151.0,0.00013277,2]
[404638490,1770369033714,-102234.2497089,0.0001328,2]
[404638491,1770369033725,-260.163436,0.0001328,2]
[404638492,1770369033735,-260.163436,0.0001328,2]
[404638493,1770369033745,-260.163436,0.0001328,2]
[404638494,1770369033755,-260.163436,0.0001328,2]
[404638495,1770369033766,-159.814738,0.0001328,2]
[404638496,1770369033777,-159.814738,0.0001328,2]
[404638497,1770369033787,-159.814738,0.0001328,2]
[404638498,1770369033798,-159.814738,0.0001328,2]
[404638499,1770369033808,-151.0,0.0001328,2]
[404638500,1770369033818,-151.0,0.0001328,2]
[404638501,1770369033828,-190.139082,0.0001328,2]
[404638502,1770369033838,-199.281057,0.0001328,2]
[404638503,1770369033847,-151.0,0.0001328,2]
[404638504,1770369033857,-151.0,0.0001328,2]
[404638505,1770369033867,-212.720651,0.0001328,2]
[404638506,1770369033878,-212.720651,0.0001328,2]
[404638507,1770369033888,-212.720651,0.0001328,2]
[404638508,1770369033898,-212.720651,0.0001328,2]
[404638509,1770369033908,-1631.963075,0.0001328,2]
[404638510,1770369033918,-1631.963075,0.0001328,2]
[404638511,1770369033928,-1631.963075,0.0001328,2]
[404638512,1770369033938,-1631.963075,0.0001328,2]
[404638513,1770369033948,-1221.918362,0.0001328,2]
[404638514,1770369033958,-1221.918362,0.0001328,2]
[404638515,1770369033968,-1221.918362,0.0001328,2]
[404638516,1770369033978,-1221.918362,0.0001328,2]
[404638517,1770369033988,-216.44,0.00013282,3]
[404638518,1770369033997,-2859.5607696,0.0001333,2]
[404638519,1770369034008,-3240.0,0.00013425,2]
[404638520,1770369034018,-1092.0,0.00013483,2]
[404638521,1770369034028,-151.0,0.00013497,2]
[404638522,1770369034039,-760.74176872,0.00013498,2]
[404638523,1770369034053,-9408.21718319,0.000135,2]
[404638524,1770369034280,-42642.55532108,0.000135,2]
[404638525,1770369034293,-17527.1624978,0.000135,2]
[404638526,1770369034304,-19274.06499793,0.000135,2]
[404638527,1770369034314,-427.995377,0.000135,2]
[404638528,1770369034325,-427.995377,0.000135,2]
[404638529,1770369034334,-427.995377,0.000135,2]
[404638530,1770369034343,-427.995377,0.000135,2]
[404638531,1770369034353,-151.0,0.000135,2]
[404638532,1770369034363,-151.0,0.000135,2]
[404638533,1770369034376,-151.0,0.000135,2]
[404638534,1770369034385,-260.163436,0.000135,2]
[404638535,1770369034395,-260.163436,0.000135,2]
[404638536,1770369034404,-260.163436,0.000135,2]
[404638537,1770369034414,-260.163436,0.000135,2]
[404638538,1770369034424,-159.814738,0.000135,2]
[404638539,1770369034433,-159.814738,0.000135,2]
[404638540,1770369034442,-159.814738,0.000135,2]
[404638541,1770369034452,-159.814738,0.000135,2]
[404638542,1770369034461,-151.0,0.000135,2]
[404638543,1770369034470,-151.0,0.000135,2]
[404638544,1770369034480,-151.0,0.000135,2]
[404638545,1770369034489,-225.59353,0.000135,2]
[404638546,1770369034499,-212.720651,0.000135,2]
[404638547,1770369034509,-212.720651,0.000135,2]
[404638548,1770369034519,-212.720651,0.000135,2]
[404638549,1770369034529,-212.720651,0.000135,2]
[404638550,1770369034539,-1631.963075,0.000135,2]
[404638551,1770369034548,-1318.58193697,0.000135,2]
[404638552,1770369034562,-313.38113803,0.000135,2]
[404638553,1770369034572,-141.17274105,0.000135,2]
[404638554,1770369034584,-1490.79033395,0.000135,2]
[404638555,1770369034594,-1325.15912998,0.000135,2]
[404638556,1770369034605,-306.80394502,0.000135,2]
[404638557,1770369034615,-1221.918362,0.000135,2]
[404638558,1770369034625,-1221.918362,0.000135,2]
[404638559,1770369034635,-1221.918362,0.000135,2]
[404638560,1770369034644,-28.94679898,0.000135,2]
[404638561,1770369034656,-1192.97156302,0.000135,2]
[404638562,1770369034665,-500.0,0.00013548,2]
[404638563,1770369034675,-1000.0,0.00013568,2]
[404638564,1770369034684,-4737.198,0.00013599,2]
[404638565,1770369034694,-166.66,0.0001361,2]
[404638566,1770369034704,-151.0,0.00013695,2]
[404638567,1770369034714,-500.0,0.00013698,2]
[404638568,1770369034727,-265.46937371,0.00013698,2]
[404638570,1770369037659,-680.50293505,0.00012627,2]
[404638571,1770369037714,-9319.49706495,0.00012627,2]
[404638572,1770369037726,-234.53062629,0.00013698,2]
[404638573,1770369037736,-402.66175926,0.00013698,2]
[404638574,1770369037746,-345.38902329,0.00013698,2]
[404638575,1770369037756,-547.91380347,0.00013698,2]
[404638576,1770369037766,-559.34492563,0.00013698,2]
[404638578,1770369037775,-500.0,0.00013698,2]
[404638580,1770369037785,-500.0,0.00013698,2]
[404638582,1770369037795,-500.0,0.00013698,2]
[404638584,1770369037804,-500.0,0.00013698,2]
[404638586,1770369037814,-500.0,0.00013698,2]
[404638588,1770369037823,-500.0,0.00013698,2]
[404638590,1770369037832,-500.0,0.00013698,2]
[404638592,1770369037840,-500.0,0.00013698,2]
[404638594,1770369037849,-500.0,0.00013698,2]
[404638596,1770369037858,-500.0,0.00013698,2]
[404638598,1770369037867,-500.0,0.00013698,2]
[404638599,1770369037876,-500.0,0.00013698,2]
[404638602,1770369037886,-500.0,0.00013698,2]
[404638603,1770369037895,-500.0,0.00013698,2]
[404638605,1770369037904,-500.0,0.00013698,2]
[404638608,1770369037914,-500.0,0.00013698,2]
[404638610,1770369037923,-500.0,0.00013698,2]
[404638612,1770369037932,-500.0,0.00013698,2]
[404638613,1770369037941,-154.20746345,0.00013698,2]
[404638615,1770369037950,-500.0,0.00013698,2]
[404638617,1770369037959,-500.0,0.00013698,2]
[404638619,1770369037968,-500.0,0.00013698,2]
[404638621,1770369037977,-500.0,0.00013698,2]
[404638624,1770369037987,-500.0,0.00013698,2]
[404638626,1770369037996,-500.0,0.00013698,2]
[404638627,1770369038005,-500.0,0.00013698,2]
[404638629,1770369038014,-500.0,0.00013698,2]
[404638631,1770369038024,-500.0,0.00013698,2]
[404638634,1770369038033,-500.0,0.00013698,2]
[404638635,1770369038042,-500.0,0.00013698,2]
[404638637,1770369038051,-500.0,0.00013698,2]
[404638639,1770369038062,-500.0,0.00013698,2]
[404638641,1770369038072,-500.0,0.00013698,2]
[404638643,1770369038081,-577.64950078,0.00013698,2]
[404638645,1770369038092,-383.98499971,0.00013698,2]
[404638647,1770369038101,-200.0,0.00013699,2]
[404638650,1770369038111,-1826.89,0.00013699,2]
[404638651,1770369038120,-226.239759,0.00013699,2]
[404638653,1770369038130,-226.239759,0.00013699,2]
[404638656,1770369038139,-226.239759,0.00013699,2]
[404638658,1770369038149,-226.239759,0.00013699,2]
[404638659,1770369038158,-226.239759,0.00013699,2]
[404638661,1770369038168,-226.239759,0.00013699,2]
[404638663,1770369038178,-226.239759,0.00013699,2]
[404638666,1770369038187,-226.239759,0.00013699,2]
[404638667,1770369038196,-252.721836,0.00013699,2]
[404638669,1770369038206,-252.721836,0.00013699,2]
[404638671,1770369038215,-252.721836,0.00013699,2]
[404638673,1770369038224,-252.721836,0.00013699,2]
[404638675,1770369038234,-252.721836,0.00013699,2]
[404638677,1770369038243,-252.721836,0.00013699,2]
[404638679,1770369038253,-252.721836,0.00013699,2]
[404638681,1770369038263,-252.721836,0.00013699,2]
[404638683,1770369038273,-151.0,0.00013699,2]
[404638685,1770369038283,-151.0,0.00013699,2]
[404638687,1770369038294,-151.0,0.00013699,2]
[404638689,1770369038303,-151.0,0.00013699,2]
[404638692,1770369038314,-151.0,0.00013699,2]
[404638694,1770369038323,-151.0,0.00013699,2]
[404638696,1770369038332,-151.0,0.00013699,2]
[404638698,1770369038342,-151.0,0.00013699,2]
[404638700,1770369038351,-212.739513,0.00013699,2]
[404638702,1770369038360,-500.0,0.00013822,2]
[404638724,1770369038568,-500.0,0.00014096,2]
[404638726,1770369038578,-530.66,0.00014099,2]
[404638728,1770369038588,-1316.69,0.0001432,2]
[404638730,1770369038598,-182.93,0.00014355,2]
[404638732,1770369038607,-500.0,0.0001437,2]
[404638734,1770369038617,-1826.89,0.00014384,2]
[404638736,1770369038627,-200.0,0.00014395,2]
[404638738,1770369038637,-500.0,0.00014555,2]
[404638740,1770369038646,-500.0,0.00014555,2]
[404638742,1770369038656,-500.0,0.00014555,2]
[404638744,1770369038665,-500.0,0.00014555,2]
[404638746,1770369038676,-500.0,0.00014555,2]
[404638748,1770369038686,-500.0,0.00014555,2]
[404638750,1770369038698,-500.0,0.00014555,2]
[404638752,1770369038707,-500.0,0.00014555,2]
[404638754,1770369038717,-500.0,0.00014555,2]
[404638756,1770369038730,-500.0,0.00014555,2]
[404638758,1770369038740,-500.0,0.00014555,2]
[404638760,1770369038749,-500.0,0.00014555,2]
[404638762,1770369038759,-500.0,0.00014555,2]
[404638763,1770369038769,-500.0,0.00014555,2]
[404638764,1770369038778,-500.0,0.00014555,2]
[404638765,1770369038788,-397.57591877,0.00014555,2]
[404638766,1770369038798,-427.995377,0.00014555,2]
[404638767,1770369038808,-427.995377,0.00014555,2]
[404638768,1770369038818,-427.995377,0.00014555,2]
[404638769,1770369038827,-427.995377,0.00014555,2]
[404638770,1770369038837,-151.0,0.00014555,2]
[404638771,1770369038847,-151.0,0.00014555,2]
[404638772,1770369038856,-151.0,0.00014555,2]
[404638773,1770369038865,-15158.97790679,0.00014563,2]
[404638774,1770369038875,-808.0,0.00014573,2]
[404638775,1770369038885,-260.163436,0.00014596,2]
[404638777,1770369038895,-260.163436,0.00014596,2]
[404638779,1770369038904,-260.163436,0.00014596,2]
[404638781,1770369038914,-260.163436,0.00014596,2]
[404638783,1770369038924,-500.0,0.00014644,2]
[404638784,1770369038934,-159.814738,0.00014724,2]
[404638785,1770369038944,-159.814738,0.00014724,2]
[404638786,1770369038954,-159.814738,0.00014724,2]
[404638787,1770369038964,-159.814738,0.00014724,2]
[404638788,1770369038974,-252.721836,0.00014724,2]
[404638789,1770369038984,-252.721836,0.00014724,2]
[404638790,1770369038994,-151.0,0.00014724,2]
[404638791,1770369039004,-252.721836,0.00014724,2]
[404638792,1770369039014,-151.0,0.00014724,2]
[404638793,1770369039024,-252.721836,0.00014724,2]
[404638794,1770369039034,-151.0,0.00014724,2]
[404638795,1770369039045,-212.720651,0.00014724,2]
[404638796,1770369039056,-151.0,0.00014724,2]
[404638797,1770369039066,-212.720651,0.00014724,2]
[404638798,1770369039077,-151.0,0.00014724,2]
[404638799,1770369039087,-212.720651,0.00014724,2]
[404638800,1770369039097,-212.720651,0.00014724,2]
[404638801,1770369039107,-1631.963075,0.00014724,2]
[404638802,1770369039116,-1631.963075,0.00014724,2]
[404638803,1770369039125,-1631.963075,0.00014724,2]
[404638804,1770369039135,-1631.963075,0.00014724,2]
[404638805,1770369039145,-1221.918362,0.00014724,2]
[404638806,1770369039155,-1221.918362,0.00014724,2]
[404638807,1770369039164,-1221.918362,0.00014724,2]
[404638808,1770369039174,-1221.918362,0.00014724,2]
[404638809,1770369039184,-226.239759,0.00014844,2]
[404638810,1770369039195,-226.239759,0.00014844,2]
[404638811,1770369039205,-226.239759,0.00014844,2]
[404638812,1770369039215,-226.239759,0.00014844,2]
[404638813,1770369039224,-500.0,0.00014918,2]
[404638814,1770369039234,-10000.0,0.00015,2]
[404638815,1770369039244,-201.06,0.00015,2]
[404638816,1770369039255,-1826.89,0.00015068,2]
[404638817,1770369039264,-777.574925,0.00015068,2]
[404638818,1770369039273,-777.574925,0.00015068,2]
[404638819,1770369039284,-777.574925,0.00015068,2]
[404638820,1770369039294,-777.574925,0.00015068,2]
[404638821,1770369039305,-777.574925,0.00015068,2]
[404638822,1770369039317,-777.574925,0.00015068,2]
[404638823,1770369039327,-777.574925,0.00015068,2]
[404638824,1770369039336,-777.574925,0.00015068,2]
[404638825,1770369039346,-777.574925,0.00015068,2]
[404638826,1770369039356,-777.574925,0.00015068,2]
[404638827,1770369039366,-777.574925,0.00015068,2]
[404638828,1770369039375,-777.574925,0.00015068,2]
[404638829,1770369039385,-777.574925,0.00015068,2]
[404638830,1770369039395,-777.574925,0.00015068,2]
[404638831,1770369039405,-777.574925,0.00015068,2]
[404638832,1770369039415,-777.574925,0.00015068,2]
[404638833,1770369039424,-1000.0,0.00015075,2]
[404638834,1770369039435,-760.74176872,0.00015077,2]
[404638835,1770369039445,-569.61477469,0.00015192,2]
[404638836,1770369039455,-530.66,0.00015509,2]
[404638837,1770369039465,-151.0,0.00015522,2]
[404638838,1770369039474,-500.0,0.00015525,2]
[404638839,1770369039484,-500.0,0.00015525,2]
[404638840,1770369039494,-150.0,0.00015525,2]
[404638841,1770369039504,-500.0,0.00015525,2]
[404638842,1770369039514,-150.0,0.00015525,2]
[404638843,1770369039525,-203.6407361,0.00015525,2]
[404638844,1770369039535,-200.0,0.00015525,2]
[404638845,1770369039544,-500.0,0.00015525,2]
[404638846,1770369039555,-636.0,0.00015525,2]
[404638847,1770369039566,-500.0,0.00015525,2]
[404638848,1770369039576,-500.0,0.00015525,2]
[404638849,1770369039586,-715.0,0.00015525,2]
[404638850,1770369039596,-150.0,0.00015525,2]
[404638851,1770369039606,-150.0,0.00015525,2]
[404638852,1770369039616,-692.0,0.00015525,2]
[404638853,1770369039627,-150.0,0.00015525,2]
[404638855,1770369039636,-422.0,0.00015525,2]
[404638856,1770369039646,-500.0,0.00015525,2]
[404638857,1770369039657,-840.0,0.00015525,2]
[404638858,1770369039667,-150.0,0.00015525,2]
[404638859,1770369039676,-298.17798389,0.00015525,2]
[404638860,1770369039685,-150.0,0.00015525,2]
[404638861,1770369039695,-150.0,0.00015525,2]
[404638862,1770369039705,-150.0,0.00015525,2]
[404638863,1770369039714,-500.0,0.00015525,2]
[404638864,1770369039724,-500.0,0.00015525,2]
[404638865,1770369039735,-500.0,0.00015525,2]
[404638866,1770369039744,-1129.0,0.00015525,2]
[404638867,1770369039754,-500.0,0.00015525,2]
[404638868,1770369039764,-500.0,0.00015525,2]
[404638869,1770369039774,-547.0,0.00015525,2]
[404638870,1770369039784,-649.0,0.00015525,2]
[404638871,1770369039794,-150.0,0.00015525,2]
[404638872,1770369039804,-754.0,0.00015525,2]
[404638873,1770369039813,-500.0,0.00015525,2]
[404638874,1770369039821,-150.0,0.00015525,2]
[404638875,1770369039831,-150.0,0.00015525,2]
[404638876,1770369039841,-500.0,0.0001558,2]
[404638877,1770369039851,-500.0,0.0001558,2]
[404638878,1770369039860,-150.0,0.0001558,2]
[404638879,1770369039869,-500.0,0.0001558,2]
[404638880,1770369039879,-249.92684293,0.0001558,2]
[404638881,1770369039888,-500.0,0.0001558,2]
[404638882,1770369039898,-200.0,0.0001558,2]
[404638883,1770369039907,-636.0,0.0001558,2]
[404638884,1770369039920,-500.0,0.0001558,2]
[404638885,1770369039931,-500.0,0.0001558,2]
[404638886,1770369039941,-715.0,0.0001558,2]
[404638887,1770369039951,-150.0,0.0001558,2]
[404638888,1770369039960,-150.0,0.0001558,2]
[404638889,1770369039970,-692.0,0.0001558,2]
[404638890,1770369039981,-150.0,0.0001558,2]
[404638891,1770369039990,-422.0,0.0001558,2]
[404638892,1770369040000,-500.0,0.0001558,2]
[404638893,1770369040010,-840.0,0.0001558,2]
[404638894,1770369040019,-150.0,0.0001558,2]
[404638895,1770369040029,-151.86545368,0.0001558,2]
[404638896,1770369040038,-150.0,0.0001558,2]
[404638897,1770369040051,-500.0,0.0001558,2]
[404638898,1770369040061,-500.0,0.0001558,2]
[404638900,1770369040070,-500.0,0.0001558,2]
[404638902,1770369040079,-1129.0,0.0001558,2]
[404638903,1770369040089,-500.0,0.0001558,2]
[404638905,1770369040099,-547.0,0.0001558,2]
[404638906,1770369040109,-500.0,0.0001558,2]
[404638907,1770369040120,-649.0,0.0001558,2]
[404638908,1770369040129,-754.0,0.0001558,2]
[404638909,1770369040138,-500.0,0.0001558,2]
[404638910,1770369040148,-500.0,0.00015635,2]
[404638912,1770369040157,-500.0,0.00015635,2]
[404638913,1770369040167,-150.0,0.00015635,2]
[404638914,1770369040177,-500.0,0.00015635,2]
[404638915,1770369040187,-500.0,0.00015635,2]
[404638916,1770369040197,-200.0,0.00015635,2]
[404638917,1770369040207,-500.0,0.00015635,2]
[404638918,1770369040217,-636.0,0.00015635,2]
[404638919,1770369040226,-352.73419188,0.00015635,2]
[404638920,1770369040235,-715.0,0.00015635,2]
[404638921,1770369040245,-150.0,0.00015635,2]
[404638922,1770369040255,-150.0,0.00015635,2]
[404638923,1770369040265,-692.0,0.00015635,2]
[404638924,1770369040274,-200.0,0.00015635,2]
[404638925,1770369040283,-422.0,0.00015635,2]
[404638926,1770369040293,-500.0,0.00015635,2]
[404638927,1770369040303,-840.0,0.00015635,2]
[404638928,1770369040311,-203.02700794,0.00015635,2]
[404638929,1770369040322,-201.9069819,0.00015635,2]
[404638930,1770369040332,-500.0,0.00015635,2]
[404638931,1770369040342,-550.58242297,0.00015635,2]
[404638932,1770369040351,-500.0,0.00015635,2]
[404638933,1770369040361,-1129.0,0.00015635,2]
[404638934,1770369040371,-500.0,0.00015635,2]
[404638935,1770369040381,-547.0,0.00015635,2]
[404638936,1770369040391,-500.0,0.00015635,2]
[404638937,1770369040400,-649.0,0.00015635,2]
[404638938,1770369040415,-754.0,0.00015635,2]
[404638939,1770369040424,-500.0,0.00015635,2]
[404638940,1770369040433,-151.0,0.00015635,2]
[404638941,1770369040444,-212.720651,0.00015635,2]
[404638942,1770369040454,-151.0,0.00015635,2]
[404638943,1770369040466,-212.720651,0.00015635,2]
[404638944,1770369040475,-151.0,0.00015635,2]
[404638945,1770369040484,-212.720651,0.00015635,2]
[404638946,1770369040494,-212.720654,0.00015635,2]
[404638947,1770369040504,-1631.963075,0.00015635,2]
[404638948,1770369040513,-1631.963075,0.00015635,2]
[404638949,1770369040523,-1631.963075,0.00015635,2]
[404638950,1770369040532,-1631.963067,0.00015635,2]
[404638951,1770369040541,-1221.918362,0.00015635,2]
[404638952,1770369040551,-1221.918362,0.00015635,2]
[404638953,1770369040560,-1221.918362,0.00015635,2]
[404638954,1770369040569,-1221.918362,0.00015635,2]
[404638955,1770369040578,-2000.0,0.0001567,2]
[404638956,1770369040587,-226.239759,0.00015689,2]
[404638957,1770369040597,-226.239759,0.00015689,2]
[404638958,1770369040607,-226.239759,0.00015689,2]
[404638959,1770369040616,-226.239759,0.00015689,2]
[404638960,1770369040625,-159.814738,0.00015689,2]
[404638961,1770369040635,-159.814738,0.00015689,2]
[404638962,1770369040644,-159.814738,0.00015689,2]
[404638963,1770369040653,-159.814738,0.00015689,2]
[404638964,1770369040663,-252.721836,0.00015689,2]
[404638965,1770369040673,-252.721836,0.00015689,2]
[404638966,1770369040682,-151.0,0.00015689,2]
[404638967,1770369040691,-252.721836,0.00015689,2]
[404638968,1770369040701,-151.0,0.00015689,2]
[404638969,1770369040710,-252.721836,0.00015689,2]
[404638970,1770369040721,-777.574925,0.00015689,2]
[404638971,1770369040731,-777.574925,0.00015689,2]
[404638972,1770369040739,-777.574925,0.00015689,2]
[404638973,1770369040749,-777.574921,0.00015689,2]
[404638974,1770369040758,-187.38563793,0.00015689,2]
[404638975,1770369040769,-500.0,0.00015689,2]
[404638976,1770369040778,-150.0,0.00015689,2]
[404638977,1770369040794,-500.0,0.00015689,2]
[404638978,1770369040810,-200.0,0.00015689,2]
[404638979,1770369040819,-500.0,0.00015689,2]
[404638980,1770369040828,-526.17810022,0.00015689,2]
[404638981,1770369040837,-636.0,0.00015689,2]
[404638982,1770369040847,-715.0,0.00015689,2]
[404638983,1770369040856,-150.0,0.00015689,2]
[404638984,1770369040865,-200.59270043,0.00015689,2]
[404638985,1770369040873,-692.0,0.00015689,2]
[404638986,1770369040882,-422.0,0.00015689,2]
[404638987,1770369040891,-500.0,0.00015689,2]
[404638988,1770369040900,-840.0,0.00015689,2]
[404638989,1770369040911,-500.0,0.00015689,2]
[404638990,1770369040920,-500.0,0.00015689,2]
[404638991,1770369040929,-1129.0,0.00015689,2]
[404638992,1770369040938,-500.0,0.00015689,2]
[404638993,1770369040947,-547.0,0.00015689,2]
[404638994,1770369040956,-500.0,0.00015689,2]
[404638995,1770369040966,-649.0,0.00015689,2]
[404638996,1770369040975,-754.0,0.00015689,2]